Cogmind - Beta 13 @@@ ROGUE MODE // 2024.07.11 @ 15:29:05 Player: celerysam Result: Destroyed by D-53 Grenadier with Mini Grenade Launcher Performance ------------- Evolutions (1) 500 Regions Visited (3) 600 Robots Destroyed (6) 30 Value Destroyed (103) 103 Prototype IDs (0) 0 Alien Tech Used (0) 0 Bonus (0) 0 TOTAL SCORE: 1233 Bonus ------- None Cogmind --------- Core Integrity 0/400 Matter 182/300 Energy 80/100 System Corruption 0% Temperature Cool (8) Movement Flying (40) Location -9/Mines Parts ------- > --- POWER (1) -------- (None) > --- PROPULSION (4) --- Flight Unit > --- UTILITY (2) ------ (None) > --- WEAPON (2) ------- (None) > --- INVENTORY (5) ---- Ion Engine Light Treads Aluminum Leg Medium Laser Autogun Peak State ------------ > --- POWER ------------ Ion Engine > --- PROPULSION ------- Hover Unit Hover Unit Hover Unit Hover Unit > --- UTILITY ---------- Small Storage Unit > --- WEAPON ----------- Light EM Pulse Cannon Grenade Launcher > --- INVENTORY -------- Ion Engine Light Treads Light Treads Aluminum Leg Flight Unit Medium Laser Autogun Rocket Launcher [Rating: 10] Favorites ----------- Power Ion Engine Engine Ion Engine Propulsion Hover Unit Treads Light Treads Leg Aluminum Leg Wheel Wheel Hover Unit Hover Unit Flight Unit Flight Unit Utility Small Storage Unit Storage Small Storage Unit Weapon Grenade Launcher Energy Gun Medium Laser Energy Cannon Light EM Pulse Cannon Ballistic Gun Assault Rifle Launcher Grenade Launcher Build | -11 -10 -9 -9 ------- Run | Yrd Mat Mat Min Slots Evolved 2 | . . 2 . Power . | . . . . Propulsion 2 | . . 2 . Utility . | . . . . Weapon . | . . . . Parts Attached 21 | 5 8 7 1 Power 2 | 1 1 . . Engine 2 | 1 1 . . Core . | . . . . Reactor . | . . . . Propulsion 12 | 2 4 5 1 Treads 2 | . 2 . . Leg 3 | . 2 1 . Wheel 2 | 2 . . . Hover 4 | . . 4 . Flight 1 | . . . 1 Utility 3 | 1 1 1 . Device . | . . . . Storage 3 | 1 1 1 . Processor . | . . . . Hackware . | . . . . Protection . | . . . . Artifact . | . . . . Weapon 4 | 1 2 1 . Energy Gun 1 | 1 . . . Energy Cannon 1 | . . 1 . Ballistic Gun 1 | . 1 . . Ballistic Cannon . | . . . . Launcher 1 | . 1 . . Special Weapon . | . . . . Impact Weapon . | . . . . Slashing Weapon . | . . . . Piercing Weapon . | . . . . Special Melee Weapon . | . . . . Unidentified Prototypes . | . . . . Parts Lost 7 | . 1 . 6 Power 1 | . . . 1 Propulsion 5 | . 1 . 4 Utility . | . . . . Weapon 1 | . . . 1 Highest Loss Streak 6 | . 1 . 6 To Critical Strikes . | . . . . Average Slot Usage (%) 79 | . 83 72 79 Engine 12 | . 14 11 10 Treads 7 | . 14 3 . Wheel 5 | . 12 . . Hover 17 | . . 24 39 Storage 12 | . 14 11 11 Energy Gun 8 | . 14 7 . Energy Cannon 3 | . . 3 9 Launcher 10 | . 10 11 9 Naked Turns . | . . . . Heaviest Build 30 | 10 30 30 17 Greatest Support 40 | 20 40 40 24 Greatest Overweight (x) 9 | 1 2 9 3 Average Overweight (x) . | . . . . Largest Inventory Capacity 15 | 8 15 15 8 Average Capacity 11 | 7 14 11 7 Most Carried 14 | 7 10 14 8 Average Carried 7 | 3 8 9 7 Final Capacity 15 | 8 15 8 5 Final Carried 10 | 7 10 8 5 Class Distribution -------------------- 100% | Mutant Dominant Class ---------------- Mutant | -10/Materials Mutant | -9/Materials Mutant | -9/Mines Resources | -11 -10 -9 -9 ----------- Run | Yrd Mat Mat Min Matter Collected 348 | 250 4 94 . Remotely . | . . . . Salvage Created 95 | . 86 . 9 Parts 13 | . 13 . . Haulers Intercepted . | . . . . Recyclers Shooed . | . . . . Parts Field Recycled . | . . . . Retrieved Matter . | . . . . Parts Self-Destructed . | . . . . Prevented . | . . . . Kills | -11 -10 -9 -9 ------- Run | Yrd Mat Mat Min Combat Hostiles Destroyed 7 | . 5 . 2 Guns 2 | . 2 . . AOE 5 | . 3 . 2 Classes Destroyed 4 | . 3 . 1 Builder 1 | . 1 . . Swarmer 3 | . 3 . . Grunt 2 | . 2 . . Assembled 2 | . . . 2 Best Kill Streak 6 | . 6 . 2 Combat Bots Only 5 | . 5 . 2 Max Kills in Single Turn 2 | . 2 . 2 Gunslinging . | . . . . Exploded 2 | . 2 . 2 Melee . | . . . . Uniques/NPCs Destroyed . | . . . . Combat | -11 -10 -9 -9 -------- Run | Yrd Mat Mat Min Hostile Shots Fired 84 | . 20 . 64 Missed 27 | . 7 . 20 Damage Taken 914 | . 166 . 748 Core 420 | . 20 . 400 Absorbed by Shields . | . . . . Core Remaining (%) 96 | 100 92 . . Volleys Fired 16 | . 14 . 2 Largest 2 | . 2 . 2 Hottest 86 | . 80 . 86 Shots Fired 25 | . 21 . 4 Gun 14 | . 14 . . Cannon 2 | . . . 2 Launcher 9 | . 7 . 2 Special . | . . . . Kinetic 2 | . 2 . . Thermal 12 | . 12 . . Explosive 9 | . 7 . 2 Electromagnetic 2 | . . . 2 Robot Hit Streak 2 | . 2 . 1 Robot Miss Streak 5 | . 5 . 1 Penetration Max . | . . . . Secondary Targets . | . . . . Shots Hit Robots 8 | . 7 . 1 Core Hits 15 | . 8 . 7 Critical Kills . | . . . . Critical Parts Destroyed . | . . . . Critical Strikes . | . . . . Melee Attacks . | . . . . Impact . | . . . . Slashing . | . . . . Piercing . | . . . . Sneak Attacks . | . . . . Combat Hostiles . | . . . . Follow-up Attacks . | . . . . Damage Inflicted 695 | . 368 . 327 Guns 86 | . 86 . . Cannons 18 | . . . 18 Explosions 585 | . 282 . 303 Melee . | . . . . Ramming 6 | . . . 6 Kinetic 11 | . 11 . . Thermal 75 | . 75 . . Explosive 585 | . 282 . 303 Electromagnetic 18 | . . . 18 Impact . | . . . . Slashing . | . . . . Piercing . | . . . . Highest Corruption . | . . . . Average Corruption . | . . . . Corruption Purged . | . . . . Corruption Blocked . | . . . . Overload Shots . | . . . . Overflow Damage 6 | . 3 . 3 Projectiles . | . . . . Explosions 6 | . 3 . 3 Melee . | . . . . Knockbacks . | . . . . Impact . | . . . . Kinetic . | . . . . Secondary . | . . . . Self-Inflicted Damage 57 | . 54 . 3 Shots 2 | . 2 . . Rammed 1 | . . . 1 Targets Rammed 1 | . . . 1 Kicked . | . . . . Crushed . | . . . . Highest Temperature 158 | . 158 . 58 Average Temperature 55 | . 65 . 31 Received Heat Transfer 161 | . 18 . 143 Siege Activations . | . . . . Robots Corrupted . | . . . . Combat Hostiles . | . . . . Parts Fried . | . . . . Impact Corruptions . | . . . . Robots Melted . | . . . . Combat Hostiles . | . . . . Parts Melted . | . . . . Heat Transferred 222 | . 222 . . Parts Sabotaged . | . . . . Parts Stolen . | . . . . Parts Stripped . | . . . . Power Chain Reactions . | . . . . Alert | -11 -10 -9 -9 ------- Run | Yrd Mat Mat Min Peak Influence 147 | . 147 104 83 Initial 61 | . . 61 40 Average 70 | . 106 72 49 Maximum Alert Level . | . . . . Low Security (%) 100 | 100 100 100 100 Level 1 . | . . . . Level 2 . | . . . . Level 3 . | . . . . Level 4 . | . . . . Level 5 . | . . . . High Security . | . . . . Max Security . | . . . . Squads Dispatched 1 | . 1 . . Investigation . | . . . . Extermination . | . . . . Reinforcement 1 | . 1 . . Assault . | . . . . Garrison . | . . . . Intercept . | . . . . Searches Triggered . | . . . . Construction Impeded . | . . . . Haulers Reinforced . | . . . . Active Scanning Responses . | . . . . Cargo Convoy Interrupts . | . . . . Stealth | -11 -10 -9 -9 --------- Run | Yrd Mat Mat Min Distress Signals 1 | . . 1 . Communications Jammed . | . . . . Distress Signals . | . . . . Times Spotted 31 | . 8 2 21 Peak Tracking Total 16 | . 4 3 16 Tactical Retreats 3 | . . . 3 Traps | -11 -10 -9 -9 ------- Run | Yrd Mat Mat Min Traps Triggered . | . . . . Indirectly . | . . . . Trap Hack Attempts . | . . . . Triggered . | . . . . Disarmed . | . . . . Reprogrammed . | . . . . Reused . | . . . . Traps Extracted . | . . . . Installed . | . . . . Triggered . | . . . . Machines | -11 -10 -9 -9 ---------- Run | Yrd Mat Mat Min Machines Disabled . | . . . . Max in Single Turn . | . . . . Machines Repaired . | . . . . Machines Dismantled . | . . . . Machines Sabotaged . | . . . . Overloaded Fab Kills . | . . . . Hacking | -11 -10 -9 -9 --------- Run | Yrd Mat Mat Min Machines Accessed 1 | . . 1 . Terminals 1 | . . 1 . Fabricators . | . . . . Repair Stations . | . . . . Recycling Units . | . . . . Scanalyzers . | . . . . Garrison Access . | . . . . Total Hacks 2 | . . 2 . Successful 2 | . . 2 . Failed . | . . . . Catastrophic . | . . . . Database Lockouts . | . . . . Manual 1 | . . 1 . Terminals 2 | . . 2 . Fabricators . | . . . . Repair Stations . | . . . . Recycling Units . | . . . . Scanalyzers . | . . . . Garrison Access . | . . . . Terminal Hacks 1 | . . 1 . Surveillance Status 1 | . . 1 . Fabricator Hacks . | . . . . Repair Station Hacks . | . . . . Recycling Unit Hacks . | . . . . Scanalyzer . | . . . . Garrison Access Hacks . | . . . . Unauthorized Hacks 1 | . . 1 . Terminals 1 | . . 1 . Assimilate 1 | . . 1 . Fabricators . | . . . . Repair Stations . | . . . . Recycling Units . | . . . . Scanalyzers . | . . . . Garrison Access . | . . . . Data Cores Recovered . | . . . . Used . | . . . . Hacking Detections . | . . . . Full Trace Events . | . . . . Feedback Events . | . . . . Feedback Blocked . | . . . . Robot Schematics Acquired . | . . . . Robots Built . | . . . . Authchips . | . . . . Time . | . . . . Total Robot Build Rating . | . . . . Part Schematics Acquired . | . . . . Parts Built . | . . . . Authchips . | . . . . Time . | . . . . Total Part Build Rating . | . . . . Parts Repaired . | . . . . Time . | . . . . Parts Recycled . | . . . . Recycled Matter . | . . . . Retrieved Matter . | . . . . Retrieved Components . | . . . . Parts Scanalyzed . | . . . . Part Schematics Acquired . | . . . . Parts Damaged . | . . . . Bothacking | -11 -10 -9 -9 ------------ Run | Yrd Mat Mat Min Used RIF Installer . | . . . . Robots Hacked . | . . . . Non-combat . | . . . . Combat . | . . . . Robot Hacks Applied . | . . . . Relay Couplers Released . | . . . . Fabnet Peak Effective % . | . . . . Robots Rewired . | . . . . Allies Hacked . | . . . . Hacks Repelled . | . . . . Allies | -11 -10 -9 -9 -------- Run | Yrd Mat Mat Min Total Allies . | . . . . Largest Group . | . . . . Highest-Rated Group . | . . . . Highest-Rated Ally . | . . . . Total Orders . | . . . . Ally Attacks . | . . . . Total Damage . | . . . . Kills . | . . . . Allies Corrupted . | . . . . Allies Melted . | . . . . Intel | -11 -10 -9 -9 ------- Run | Yrd Mat Mat Min Robot Analysis Total . | . . . . Derelict Logs Recovered . | . . . . Drone Launches . | . . . . Drone Recoveries . | . . . . Exploration | -11 -10 -9 -9 ------------- Run | Yrd Mat Mat Min Turns Passed 501 | 66 212 84 139 Spaces Moved 484 | 61 120 96 207 Core 15 | 11 . 3 1 Treads 78 | . 72 6 . Legs . | . . . . Wheels 98 | 50 48 . . Hover 290 | . . 87 203 Flight 3 | . . . 3 Fastest Speed 40 | 50 80 48 40 Average Speed 78 | 81 134 69 49 Slowest Speed 500 | 100 160 500 200 Overloaded Moves . | . . . . Propulsion Burnouts . | . . . . Robots Hopped . | . . . . Cave-ins Triggered . | . . . . Exploration Rate (%) 25 | 3 33 11 54 Regions Visited 3 Branch Regions 1 Pre-discovered Areas . | . . . . Known Exits Taken . | . . . . Unknown Exits Taken 3 | 1 1 1 . Scrap Searched . | . . . . Spaces Dug . | . . . . Terrain Destroyed 32 | . 19 . 13 Melee . | . . . . Projectile . | . . . . AOE 32 | . 19 . 13 Terrain Rammed . | . . . . Walls Destroyed . | . . . . Machines Disabled . | . . . . Actions | -11 -10 -9 -9 --------- Run | Yrd Mat Mat Min Total 581 | 77 148 115 241 Wait 27 | . 1 . 26 Move 481 | 60 119 95 207 Hop . | . . . . Pick Up 24 | 12 5 6 1 Fast Attach 1 | . . 1 . Attach 13 | 5 3 4 1 Detach 3 | . 1 2 . Swap 7 | . 5 2 . Drop 8 | . . 5 3 Fire 16 | . 14 . 2 Melee . | . . . . Ram 1 | . . . 1 Kick . | . . . . Crush . | . . . . Escape Stasis . | . . . . Rewire . | . . . . Trap . | . . . . Miscellaneous . | . . . . Route ------- -11/Scrapyard -10/Materials -9/Materials -9/Mines History --------- Turn | Location | Event 29 | -11/Scrapyard | Discovered new exit (range 15) 67 | -11/Scrapyard | Entered Materials 176 | -10/Materials | Discovered new exit (range 16) 279 | -10/Materials | Entered another Materials area 279 | -9/Materials | Evolved 2 slots: Propulsion x2 353 | -9/Materials | Discovered new exit (range 15) 355 | -9/Materials | Build established: Mutant 363 | -9/Materials | Entered Mines 400 | -9/Mines | Received a Rocket Launcher from a helpful Derelict 431 | -9/Mines | Assembled infested the area 436 | -9/Mines | Assisted by a Guerilla fighting off Assembled 497 | -9/Mines | Core integrity fell below 50% 501 | -9/Mines | Core integrity fell below 20% 502 | -9/Mines | Destroyed by D-53 Grenadier with Mini Grenade Launcher Last Messages --------------- coming from, and they're closing on this area, come on!" 00438_ Z1-1L9(h): "I'll hold them off! Go on ahead or try to find another way!" 00438_ HV Slug penetrates Wall. 00443_ Z1-1L9(h) destroyed. 00456_ as-92793 destroyed. 00456_ as-28852 destroyed. 00456_ Destroyed Asb. Hover Unit. 00479_ as-78492 destroyed. 00481_ Critical hit (Burn: +80). 00485_ Grenade Launcher destroyed. 00486_ Hover Unit destroyed. 00487_ Dropped Lgt. EM Pulse Cannon. 00491_ Slammed into G-47 Trooper. 00492_ D-53 Grenadier knocked back. 00496_ Hover Unit destroyed. 00498_ Ion Engine destroyed. 00500_ D-53 Grenadier destroyed. 00501_ The unstable cave ceiling collapses. 00501_ Dropped Sml. Storage Unit. Map ----- +----------------------------------------------------+ | ????????#### ##?????????##### #???? | | ???????## #######???# #???? | | ???????# #???# ## #???? | | ???????# ##### ### #???? | | ??????## ### % #### ##???? | | ????### ##?# ##???###????? | | ??### ##?############ % #???????????? | | ?## ##???????????# #???????????? | | ?# ## #???????###?# ##???????????? | | ?# ??## #?????# ### #????????????? | | ?# #?## ## #????# #### #????????????? | | ?# ## ### ###????# ## #????????????? | | ?# ### ##?????## ##????????????? | | ??# " #?## ##?????## ##?????????????? | | ??## #??? ##???#### ##??????????????? | | ???#### ##??? #??### ###???????????????? | | ??????## ##### #??# ##?????????????????? | | ???????# #?## ##?????????????????? | | ???????# ######### ######???####?????? | | ??????## ##????## #??## ##????? | | ??????# ##?### ! % ### #?## ##???? | | ??????# ### % "" ##?# #?# ##??? | | ??????## * ###??# #?# #??? | | ???????### % ###????# #?## #??? | | ?????????## % d ##???# #??### ##??? | | ??????????## % @ ##??# #????## ##### | | ???????????# #??# #?????# | | ????????????# = ##??# #????# ##### | | ????????????### ! #### #????# ##???? | | ?????????????## # ] # #????####????? | | ?????????????# ## # ### #????????????? | | ?????????????# ### # #?# #????????????? | | ?????????????# ] ### ### #????????????? | | ?????????????## #### #### ## ##???????????? | | ??????????????#####??### #?# # ##??????????? | | ???????????????????????# #?# ##?????????? | | ??????????????????????## g### """" #?????????? | | ??????????????????????# g ## """" #?????????# | | ??????????????????????# """ ### """" #?????????# | | ??????????????????????# """ #?## ########### | | ??????????????????????# """ #??## # | | ??????????????????????# #???## | | ??????????????????????# #????# ######### | | ??????????????????????#######????## ##???????? | | ??????????????????????????????????#######????????? | | ?????????????????????????????????????????????????? | | ?????????????????????????????????????????????????? | | ?????????????????????????????????????????????????? | | ?????????????????????????????????????????????????? | | ?????????????????????????????????????????????????? | +----------------------------------------------------+ Best States ------------- Heat Dissipation 28 Energy Generation 10 Energy Capacity 250 Matter Stores 300 Matter Capacity 300 Sight Range 16 Terrain Scan Density 10 Evasion (%) 55 Recoil Reduction 2 Item Schematics ----------------- None Robot Schematics ------------------ None Fabricated ------------ Nothing Alien Tech Used ----------------- None Achievements -------------- None Challenges ------------ None Game ------ Seed SmallAlloyBeamcaster Manual? 0 Play Time 00:07:54 Cumulative 97.1 hours Start 2024.07.11 @ 15:20:20 End 2024.07.11 @ 15:29:05 Sessions 1 Manual Loads 0 Difficulty Rogue Special Mode None Game No. 142 Rogue 142 Adventurer 0 Explorer 0 Win Type - Total 0 Types 0/0/0/0/0/0/0/0/0 Lore% 43 Gallery% 55 Achievement% 35 Wizard Run 0 Options --------- Layout 0 ASCII 0 Keyboard 0 Movement Mouse Keybinds 0 Fullscreen 1 Font 24/Smallcaps Map View 76x50 Zoom Use 0% Tactical HUD 1 Map Filters NONE Filters NONE Steam 1 RUN: 2495ef4d-34fb-43e2-827e-bf1ba625e773